bitfinex/quotes_BTCUSD_20251219
["timestamp","ask_amount","ask_price","bid_price","bid_amount"]
[1766137646188,0.90284,88155.0,88149.0,0.0025]
[1766137646626,0.42471,88149.0,88143.0,0.0407792]
[1766137646788,0.42471,88148.0,88143.0,0.0407792]
[1766137647684,0.00568,88151.0,88137.0,0.05120249]
[1766137647685,0.47813,88145.0,88137.0,0.05120249]
[1766137647887,0.90284,88144.0,88137.0,0.05120249]
[1766137648092,0.901741,88144.0,88137.0,0.05120249]
[1766137648484,0.901741,88144.0,88138.0,0.0025]
[1766137651183,0.0025,88148.0,88138.0,0.0025]
[1766137651393,0.0025,88148.0,88141.0,0.40359]
[1766137651615,0.00568,88158.0,88148.0,0.23823494]
[1766137651906,0.0040082,88163.0,88154.0,0.40359]
[1766137652134,0.00568,88165.0,88157.0,0.49374]
[1766137652560,0.01134249,88164.0,88152.0,0.49374]
[1766137652765,0.001099,88157.0,88148.0,0.00568]
[1766137652973,0.90284,88154.0,88140.0,0.01384558]
[1766137653174,0.90284,88154.0,88142.0,0.0025]
[1766137653585,0.90284,88154.0,88144.0,0.0025]
[1766137654015,0.47813,88154.0,88144.0,0.01384507]
[1766137654230,0.47813,88154.0,88144.0,0.0025]
[1766137654476,0.47813,88154.0,88144.0,0.49414]
[1766137654793,0.0025,88157.0,88146.0,0.49164]
[1766137659570,0.0025,88157.0,88145.0,0.41378]
[1766137661006,0.0025,88157.0,88145.0,0.41946]
[1766137661372,0.89656,88157.0,88145.0,0.00568]
[1766137661941,0.01384339,88157.0,88145.0,0.00568]
[1766137662114,0.0025,88155.0,88145.0,0.004581]
[1766137662313,0.89406,88148.0,88131.0,0.01]
[1766137662555,0.89406,88145.0,88132.0,0.00568]
[1766137662941,0.01134532,88142.0,88132.0,0.00568]
[1766137663137,0.89406,88141.0,88125.0,0.50497751]
[1766137663362,0.89406,88141.0,88127.0,0.48363]
[1766137664359,0.89406,88141.0,88128.0,0.0025]
[1766137664360,0.99585804,88140.0,88128.0,0.0025]
[1766137664778,0.99585804,88140.0,88120.0,0.27240076]
[1766137664779,0.5071461,88136.0,88121.0,0.42214]
[1766137664980,1.88991804,88131.0,88121.0,0.00568]
[1766137665179,0.011347,88129.0,88122.0,0.0025]
[1766137665378,0.011347,88129.0,88113.0,0.04544]
[1766137665379,0.39826,88124.0,88105.0,0.43214]
[1766137665601,0.22695288,88125.0,88105.0,0.43214]
[1766137665602,0.01134777,88123.0,88107.0,0.01]
[1766137665851,0.89406,88119.0,88106.0,0.00568]
[1766137667137,0.89415069,88119.0,88106.0,0.00568]
[1766137667547,0.89415069,88119.0,88107.0,0.0025]
[1766137667871,0.49589069,88119.0,88107.0,0.0025]
[1766137668102,0.49589069,88119.0,88107.0,0.48863]
[1766137668273,0.49589069,88119.0,88107.0,0.42464]
[1766137668505,0.49589069,88119.0,88108.0,0.0025]
[1766137669857,0.49589069,88119.0,88108.0,0.4999797]
[1766137670185,0.00568,88123.0,88119.0,0.00100831]
[1766137670336,0.00568,88123.0,88119.0,0.00010911]
[1766137672053,0.00568,88123.0,88119.0,1.911e-05]
[1766137672506,0.89406,88122.0,88119.0,1.911e-05]
[1766137673066,1.22277207,88140.0,88121.0,0.417559]
[1766137673067,0.0025,88128.0,88121.0,0.417559]
[1766137673268,0.0025,88126.0,88122.0,1e-08]
[1766137673672,0.0025,88126.0,88119.0,1.911e-05]
[1766137674327,0.0025,88128.0,88119.0,1.911e-05]
[1766137675373,0.0025,88128.0,88119.0,0.02271569]
[1766137675584,0.0025,88128.0,88119.0,0.42215911]
[1766137676387,0.0025,88128.0,88121.0,0.42214]
[1766137676530,0.0025,88137.0,88123.0,0.42214]
[1766137676726,0.0025,88135.0,88123.0,0.42214]
[1766137677712,0.0025,88135.0,88125.0,0.42214]
[1766137678185,0.0025,88135.0,88126.0,0.02269477]
[1766137680814,0.0025,88135.0,88125.0,0.42214]
[1766137681209,0.0025,88135.0,88126.0,0.02269477]
[1766137682839,0.0025,88135.0,88125.0,0.42214]
[1766137683996,0.0025,88135.0,88126.0,0.02269477]
[1766137685102,0.0125,88139.0,88126.0,0.02269477]
[1766137685421,0.0025,88135.0,88126.0,0.02269477]
[1766137687246,0.0025,88135.0,88125.0,0.42214]
[1766137687466,0.0025,88135.0,88119.0,0.40616911]
[1766137687990,0.0025,88133.0,88119.0,0.40616911]
[1766137688758,0.0025,88133.0,88121.0,0.40615]
[1766137690797,0.0025,88133.0,88122.0,0.0226958]
[1766137692165,0.0025,88133.0,88121.0,0.40615]
[1766137692608,0.45943,88135.0,88119.0,1.911e-05]
[1766137692784,0.0025,88134.0,88119.0,0.41234911]
[1766137693284,0.0025,88134.0,88119.0,0.45307483]
[1766137693517,0.01384635,88134.0,88119.0,0.45307483]
[1766137693714,0.0025,88131.0,88119.0,0.41234911]
[1766137694150,0.01384674,88131.0,88119.0,0.41234911]
[1766137694944,0.0025,88131.0,88119.0,0.41234911]
[1766137695358,0.0025,88131.0,88119.0,0.45307483]
[1766137697140,0.0025,88131.0,88120.0,0.45305572]
[1766137699462,0.0025,88131.0,88121.0,0.04072572]
[1766137699669,0.01134597,88137.0,88121.0,0.04072572]
[1766137699670,0.39456,88145.0,88124.0,0.41233]
[1766137699869,0.01702507,88144.0,88127.0,0.04322572]
[1766137700072,0.0025,88143.0,88128.0,0.02269426]
[1766137700266,0.45693,88142.0,88128.0,0.02269426]
[1766137700477,0.85149,88141.0,88128.0,0.02269426]
[1766137700941,0.0025,88140.0,88128.0,0.06341998]
[1766137701168,0.0025,88140.0,88128.0,0.02269426]
[1766137701572,0.0025,88140.0,88128.0,0.06341998]
[1766137701817,0.0025,88138.0,88128.0,0.47574998]
[1766137702019,0.0025,88138.0,88128.0,0.45305572]
[1766137702231,0.0025,88138.0,88128.0,0.41233]
[1766137703564,0.0025,88138.0,88128.0,0.45305572]
[1766137703765,0.0025,88138.0,88128.0,0.41233]
[1766137704830,0.0025,88138.0,88127.0,0.04322572]
[1766137705168,0.01134661,88132.0,88124.0,0.04640572]
[1766137705370,0.01134661,88132.0,88119.0,1.911e-05]
[1766137705371,0.22694207,88129.0,88119.0,1.911e-05]
[1766137705521,0.00568,88131.0,88119.0,1.911e-05]
[1766137705522,0.0063479,88122.0,88119.0,1.911e-05]
[1766137705723,0.21684323,88120.0,88119.0,1.911e-05]
[1766137705932,0.17934323,88120.0,88119.0,1.911e-05]
[1766137706296,0.0025,88120.0,88119.0,1.911e-05]
[1766137716119,0.00818,88120.0,88119.0,1.911e-05]
[1766137720873,0.0025,88120.0,88119.0,1.911e-05]
[1766137721455,0.46292,88127.0,88119.0,1.911e-05]
[1766137721642,0.461821,88127.0,88119.0,1.911e-05]
[1766137721837,0.456141,88127.0,88119.0,1.911e-05]
[1766137722040,0.00568,88129.0,88119.0,1.911e-05]
[1766137722248,0.23826287,88138.0,88119.0,1.911e-05]
[1766137722249,0.0025,88130.0,88121.0,0.39304]
[1766137722464,0.40052,88137.0,88123.0,0.39414]
[1766137722669,0.40052,88137.0,88124.0,0.02269528]
[1766137722907,0.39734,88136.0,88124.0,0.02269528]
[1766137723228,0.39484,88147.0,88126.0,0.0025]
[1766137723403,0.39484,88147.0,88125.0,0.02833274]
[1766137723404,0.39484,88145.0,88130.0,0.0025]
[1766137723626,0.00568,88146.0,88130.0,0.0025]
[1766137723627,0.45724,88143.0,88130.0,0.02519374]
[1766137723788,0.85208,88143.0,88130.0,0.02519374]
[1766137724336,0.85208,88142.0,88130.0,0.02519374]
[1766137724493,0.0025,88144.0,88130.0,0.02519374]
[1766137724693,0.0025,88143.0,88130.0,0.02519374]
[1766137724914,0.85208,88141.0,88130.0,0.02519374]
[1766137728179,0.0025,88147.0,88134.0,0.23827352]
[1766137728180,0.0025,88145.0,88134.0,0.23827352]
[1766137728386,0.0025,88145.0,88136.0,0.0113461]
[1766137728600,0.0025,88145.0,88137.0,0.02269194]
[1766137728836,0.01779839,88151.0,88140.0,0.0011]
[1766137729051,0.00568,88156.0,88147.0,0.39414]
[1766137729268,0.0025,88155.0,88148.0,0.0226891]
[1766137729927,0.0025,88155.0,88143.0,0.0025]
[1766137730356,0.85468917,88155.0,88143.0,0.0025]
[1766137731424,0.85208,88154.0,88143.0,0.0025]
[1766137731623,0.001099,88143.0,88135.0,0.00568]
[1766137732034,0.01702455,88148.0,88135.0,0.00568]
[1766137732640,0.39484,88142.0,88135.0,0.00568]
[1766137732856,0.01134468,88147.0,88130.0,0.00568]
[1766137732857,0.85208,88139.0,88130.0,0.00568]
[1766137733068,0.001099,88135.0,88130.0,0.00568]
[1766137733277,0.85208,88137.0,88130.0,0.00568]
[1766137733506,0.85208,88137.0,88131.0,0.0025]
[1766137734600,0.85208,88139.0,88124.0,0.00568]
[1766137734762,0.01134558,88140.0,88124.0,0.00568]
[1766137735364,0.01134532,88142.0,88124.0,0.00568]
[1766137735604,0.85208,88140.0,88124.0,0.00568]
[1766137735901,0.39484,88140.0,88124.0,0.00568]
[1766137736105,0.85208,88138.0,88124.0,0.01702764]
[1766137736305,0.85208,88141.0,88124.0,0.02837529]
[1766137736533,0.01134545,88141.0,88125.0,0.0025]
[1766137736667,0.39484,88137.0,88125.0,0.0025]
[1766137737008,0.85208,88137.0,88125.0,0.0025]
[1766137738450,0.85208,88137.0,88125.0,0.01384751]
[1766137738657,0.0025,88146.0,88129.0,0.39304]
[1766137738943,0.22688148,88152.0,88127.0,0.01134726]
[1766137738944,0.45724,88157.0,88142.0,0.01996]
[1766137739153,0.00568,88153.0,88144.0,0.413]
[1766137739354,0.00568,88153.0,88145.0,0.02268988]
[1766137739855,0.00568,88153.0,88144.0,0.01996]
[1766137740597,0.00568,88153.0,88141.0,0.0025]
[1766137741253,0.45724,88152.0,88141.0,0.0025]
[1766137741483,0.00568,88153.0,88141.0,0.0025]
[1766137741839,0.85208,88152.0,88141.0,0.0025]
[1766137742522,0.00568,88153.0,88141.0,0.0025]
[1766137742845,0.85208,88152.0,88141.0,0.0025]
[1766137743014,0.39484,88152.0,88141.0,0.0025]
[1766137743234,0.85208,88152.0,88141.0,0.0025]
[1766137743594,0.00568,88153.0,88141.0,0.0025]
[1766137743818,0.85208,88152.0,88141.0,0.0025]
[1766137744016,0.3777,88151.0,88141.0,0.0025]
[1766137744248,0.86817,88151.0,88141.0,0.0025]
[1766137745409,0.3777,88151.0,88141.0,0.0025]
[1766137745614,0.49047,88149.0,88141.0,0.0025]
[1766137746076,0.3777,88148.0,88141.0,0.0025]
[1766137749910,0.00036904,88142.0,88141.0,0.0025]
[1766137750273,0.001099,88141.0,88134.0,0.04071703]
[1766137750515,0.00024525,88138.0,88132.0,0.0025]
[1766137750922,0.86817,88137.0,88132.0,0.0025]
[1766137751130,0.86817,88137.0,88132.0,0.04321703]
[1766137751952,0.00024525,88138.0,88127.0,0.00568]
[1766137752195,0.86817,88137.0,88127.0,0.00568]
[1766137754035,0.86817,88137.0,88128.0,0.0025]
[1766137754285,0.00024525,88138.0,88127.0,0.00568]
[1766137754508,0.001099,88128.0,88122.0,0.00568]
[1766137754951,0.013847,88129.0,88117.0,0.04544]
[1766137755167,0.86817,88124.0,88118.0,0.0025]
[1766137755897,0.86817,88124.0,88116.0,0.00568]
[1766137756106,0.86817,88124.0,88117.0,0.0025]
[1766137756317,0.86817,88124.0,88116.0,0.00568]
[1766137756619,0.01134751,88125.0,88117.0,0.0025]
[1766137756825,0.00568,88125.0,88112.0,0.00568]
[1766137757106,0.86817,88124.0,88112.0,0.00577069]
[1766137757322,0.01384777,88123.0,88112.0,0.00577069]
[1766137757562,0.86817,88121.0,88112.0,0.00577069]
[1766137757775,0.49047,88120.0,88112.0,0.00577069]
[1766137758038,0.86817,88120.0,88112.0,0.00577069]
[1766137758431,0.00100831,88112.0,88106.0,0.00568]
[1766137758646,6.602e-05,88112.0,88107.0,0.0025]
[1766137759990,2e-08,88112.0,88107.0,0.0025]
[1766137761903,2e-08,88112.0,88110.0,0.42929]
[1766137762126,2e-08,88112.0,88111.0,0.44566874]
[1766137762408,2e-08,88112.0,88111.0,0.42929]
[1766137764680,2e-08,88112.0,88111.0,0.0395]
[1766137767338,2e-08,88112.0,88111.0,0.061628]
[1766137769606,2e-08,88112.0,88111.0,0.438648]
[1766137769806,2e-08,88112.0,88111.0,0.41652]
[1766137772456,2e-08,88112.0,88111.0,0.415445]
[1766137774525,0.0025,88122.0,88115.0,0.37568]
[1766137774923,0.0025,88122.0,88116.0,0.02269735]
[1766137775474,0.0025,88122.0,88111.0,0.0025]
[1766137775675,0.01780132,88131.0,88121.0,0.01134803]
[1766137775852,0.01780132,88131.0,88118.0,0.01134841]
[1766137775853,0.03434935,88138.0,88127.0,0.41018]
[1766137776053,0.00024525,88138.0,88127.0,0.41018]
[1766137776473,0.01159109,88138.0,88127.0,0.41018]
[1766137776918,0.87777109,88138.0,88127.0,0.0345]
[1766137777156,0.86618,88137.0,88125.0,0.0025]
[1766137777320,0.86618,88137.0,88125.0,0.00818]
[1766137777681,0.0025,88136.0,88125.0,0.00818]
[1766137779546,0.50099,88136.0,88125.0,0.00818]
[1766137779896,0.37019,88136.0,88125.0,0.00818]
[1766137780096,0.36769,88133.0,88125.0,0.00818]
[1766137780291,0.86618,88133.0,88125.0,0.00818]
[1766137780493,0.86618,88133.0,88116.0,0.04536047]
[1766137780494,0.01134648,88133.0,88124.0,0.00568]
[1766137780811,0.01134674,88131.0,88113.0,0.06127484]
[1766137781152,0.49849,88128.0,88114.0,0.06695484]
[1766137781302,0.86618,88127.0,88114.0,0.06695484]
[1766137781501,0.86618,88127.0,88114.0,0.00568]
[1766137781902,0.86618,88127.0,88114.0,0.01702893]
[1766137782096,0.86618,88127.0,88114.0,0.45398377]
[1766137782508,0.86618,88127.0,88115.0,0.0025]
[1766137783142,0.86618,88127.0,88115.0,0.06377484]
[1766137784296,0.86618,88127.0,88117.0,0.0025]
[1766137784671,0.49849,88127.0,88117.0,0.0025]
[1766137785094,0.49849,88127.0,88117.0,0.01384854]
[1766137785252,0.49849,88127.0,88117.0,0.0025]
[1766137785654,0.49849,88127.0,88117.0,0.01384854]
[1766137786238,0.49849,88127.0,88118.0,0.01134841]
[1766137786412,0.49849,88127.0,88118.0,0.0025]
[1766137790702,0.86618,88127.0,88118.0,0.0025]
[1766137791465,0.99648573,88130.0,88118.0,0.0025]
[1766137791666,0.36769,88122.0,88114.0,0.00568]
[1766137791844,0.36769,88120.0,88114.0,0.00568]
[1766137792498,0.49849,88122.0,88114.0,0.00568]
[1766137792702,0.37337,88126.0,88114.0,0.01702893]
[1766137792985,0.0025,88125.0,88122.0,0.001099]
[1766137793233,0.0025,88125.0,88114.0,0.01702893]
[1766137793432,0.0025,88125.0,88116.0,0.01134867]
[1766137793547,0.0025,88125.0,88115.0,0.0113488]
[1766137793771,0.0025,88125.0,88116.0,0.01134867]
[1766137794333,0.0025,88125.0,88117.0,0.02269709]
[1766137794689,0.0025,88125.0,88116.0,0.02269735]
[1766137795117,0.0025,88125.0,88115.0,0.0113488]
[1766137795441,0.0025,88125.0,88115.0,0.0138488]
[1766137796216,0.0025,88125.0,88116.0,0.01134867]
[1766137796462,0.0025,88125.0,88117.0,0.01134854]
[1766137796615,0.0025,88125.0,88118.0,0.02269683]
[1766137796815,0.0025,88125.0,88116.0,0.02269735]
[1766137797222,0.0025,88125.0,88116.0,0.03404602]
[1766137797422,0.0025,88125.0,88116.0,0.02269735]
[1766137797649,0.0025,88125.0,88117.0,0.01134854]
[1766137797868,0.0025,88125.0,88116.0,0.03404602]
[1766137798068,0.0025,88125.0,88116.0,0.02269735]
[1766137798285,0.0025,88125.0,88116.0,0.03404602]
[1766137798493,0.0025,88125.0,88115.0,0.0025]
[1766137799344,6.603e-05,88131.0,88115.0,0.02519761]
[1766137799544,0.00818,88130.0,88117.0,0.05654]
[1766137799803,0.0025,88128.0,88117.0,0.05654]
[1766137799964,0.86868,88128.0,88117.0,0.05654]
[1766137800316,0.37019,88128.0,88115.0,0.0025]
[1766137800459,0.0025,88126.0,88115.0,0.02519761]
[1766137800869,0.0025,88126.0,88116.0,0.37568]
[1766137801896,0.0025,88126.0,88117.0,0.00568]
[1766137804170,0.0025,88126.0,88117.0,0.44345]
[1766137804743,0.0025,88126.0,88118.0,0.23831647]
[1766137805131,0.001401,88126.0,88123.0,0.01134777]
[1766137805668,0.001401,88126.0,88122.0,0.23830585]
[1766137806008,0.00568,88130.0,88124.0,0.01134764]
[1766137806371,0.00024525,88138.0,88126.0,0.38123]
[1766137806577,0.00024525,88138.0,88125.0,0.01134751]
[1766137806578,0.00568,88138.0,88129.0,0.43771]
[1766137806780,0.00568,88138.0,88130.0,0.40392374]
[1766137807044,0.0025,88137.0,88130.0,0.38123]
[1766137807191,0.00568,88139.0,88131.0,0.42953]
[1766137807400,0.00568,88139.0,88129.0,0.00568]
[1766137809251,0.0025,88138.0,88129.0,0.00568]
[1766137810356,0.0025,88138.0,88130.0,0.01134687]
[1766137810557,0.0025,88138.0,88132.0,0.0483]
[1766137811091,0.00568,88139.0,88132.0,0.42953]
[1766137811468,0.00568,88139.0,88133.0,0.0025]
[1766137813394,0.35477,88147.0,88135.0,0.0025]
[1766137813595,0.00818,88146.0,88135.0,0.0025]
[1766137814541,0.82231,88146.0,88135.0,0.0025]
[1766137814751,0.81413,88145.0,88132.0,0.0025]
[1766137815723,0.81413,88145.0,88134.0,0.01134635]
[1766137815897,0.81413,88145.0,88135.0,0.01384623]
[1766137816198,0.81413,88145.0,88135.0,0.0025]
[1766137817801,0.00818,88146.0,88135.0,0.0025]
[1766137818039,0.00818,88146.0,88135.0,0.01384623]
[1766137818502,0.00818,88146.0,88137.0,0.35999]
[1766137818760,0.00568,88152.0,88144.0,0.40324]
[1766137818991,0.00568,88153.0,88145.0,0.0025]
[1766137820631,0.00568,88153.0,88145.0,0.40574]
[1766137821504,0.00568,88153.0,88146.0,0.01134481]
[1766137821707,0.00568,88153.0,88147.0,0.01134468]
[1766137822029,0.00568,88153.0,88147.0,0.41458468]
[1766137822191,0.00568,88153.0,88148.0,0.01134455]
[1766137822591,0.00568,88153.0,88144.0,0.0025]
[1766137822908,0.00568,88153.0,88146.0,0.01134481]
[1766137823444,0.00568,88153.0,88144.0,0.0025]
[1766137823845,0.0025,88158.0,88145.0,0.04325]
[1766137824047,0.001099,88145.0,88143.0,0.0025]
[1766137824568,0.00024755,88146.0,88143.0,0.0025]
[1766137825124,0.00024755,88146.0,88141.0,0.00568]
[1766137825125,0.00024755,88146.0,88142.0,0.0025]
[1766137826151,0.00024755,88146.0,88142.0,0.01384532]
[1766137827425,0.00024755,88146.0,88142.0,0.0025]
[1766137831057,0.00024755,88146.0,88142.0,0.01384532]
[1766137831269,0.00024755,88146.0,88142.0,0.0025]
[1766137832467,0.00024755,88146.0,88142.0,0.01384532]
[1766137833645,0.00024755,88146.0,88144.0,0.0025]
[1766137834618,0.00568,88154.0,88146.0,0.01134481]
[1766137834817,0.00568,88154.0,88144.0,0.35113507]
[1766137835047,0.00568,88154.0,88145.0,0.01134494]
[1766137835209,0.00568,88154.0,88145.0,0.39163494]
[1766137835406,0.00568,88154.0,88146.0,0.01134481]
[1766137835721,0.00568,88154.0,88147.0,0.01134468]
[1766137835908,0.0025,88157.0,88151.0,0.38029]
[1766137836194,0.0025,88157.0,88152.0,0.02268808]
[1766137837564,0.04536047,88168.0,88152.0,0.02268808]
[1766137837565,0.03065913,88187.0,88173.0,0.02021]
[1766137837765,0.45898,88196.0,88179.0,0.0125]
[1766137837937,0.45898,88196.0,88183.0,0.0025]
[1766137837938,0.80456,88195.0,88183.0,0.0025]
[1766137838139,0.80456,88195.0,88189.0,0.01133928]
[1766137838140,0.34558,88195.0,88189.0,0.01133928]
[1766137838344,0.45904192,88196.0,88188.0,0.0025]
[1766137838812,0.45904192,88196.0,88188.0,0.001401]
[1766137839055,0.80456,88193.0,88188.0,0.001401]
[1766137839707,6.192e-05,88196.0,88188.0,0.001401]
[1766137842707,0.34558,88192.0,88186.0,0.00568]
[1766137842909,0.80456,88189.0,88186.0,0.00568]
[1766137843259,0.00126818,88187.0,88186.0,0.00568]
[1766137843870,0.00126818,88187.0,88183.0,0.00568]
[1766137844072,0.45898,88189.0,88183.0,0.00568]
[1766137844771,0.34558,88193.0,88184.0,0.0025]
[1766137846975,0.34564192,88196.0,88186.0,0.0014]
[1766137847176,0.80462192,88196.0,88183.0,0.00568]
[1766137848171,6.192e-05,88196.0,88187.0,0.18735953]
[1766137848372,6.192e-05,88196.0,88190.0,0.01133915]
[1766137848557,1.92e-06,88196.0,88195.0,0.17596]
[1766137848759,1.92e-06,88206.0,88203.0,0.01133748]
[1766137848974,0.0025,88211.0,88202.0,0.01133761]
[1766137849175,0.0004,88214.0,88206.0,0.0025]
[1766137849382,0.00046187,88214.0,88211.0,0.0025]
[1766137849578,0.00046187,88214.0,88211.0,0.0251729]
[1766137849779,0.0020409,88212.0,88211.0,0.0251729]
[1766137849986,0.0020409,88212.0,88211.0,0.0025]
[1766137853639,0.0020409,88212.0,88208.0,0.00017]
[1766137853864,0.00046187,88214.0,88208.0,0.00017]
[1766137854064,0.0019482,88209.0,88208.0,0.00017]
[1766137854579,0.0019482,88209.0,88205.0,0.00568]
[1766137854792,0.00046187,88214.0,88202.0,0.00568]
[1766137854994,0.00185549,88206.0,88194.0,0.01]
[1766137855190,0.80456,88207.0,88196.0,0.01]
[1766137855618,0.80456,88207.0,88197.0,0.0025]
[1766137855998,0.45898,88206.0,88197.0,0.0025]
[1766137856233,0.45898,88206.0,88182.0,0.00568]
[1766137856234,0.45898,88196.0,88182.0,0.00568]
[1766137856408,0.80456,88194.0,88182.0,0.00568]
[1766137856605,0.34558,88193.0,88182.0,0.00568]
[1766137856828,0.80456,88193.0,88182.0,0.00568]
[1766137857970,0.01133889,88192.0,88182.0,0.00568]
[1766137858176,0.80456,88189.0,88183.0,0.0025]
[1766137858376,0.45898,88188.0,88182.0,0.00568]
[1766137858600,0.45898,88188.0,88170.0,0.05674172]
[1766137858601,0.34558,88183.0,88174.0,0.00568]
[1766137858850,0.01134108,88175.0,88160.0,0.01]
[1766137859056,1.00700174,88170.0,88151.0,0.03407985]
[1766137859253,0.45898,88163.0,88151.0,0.03407985]
[1766137859473,0.80456,88163.0,88150.0,0.02268859]
[1766137859634,0.01134288,88161.0,88148.0,0.00568]
[1766137859837,0.34558,88159.0,88150.0,0.0003637]
[1766137860001,0.80456,88157.0,88150.0,0.0003637]
[1766137860423,0.34558,88156.0,88150.0,0.0003637]
[1766137860817,0.01134314,88159.0,88150.0,0.0003637]
[1766137860818,0.80480752,88154.0,88150.0,0.0003637]
[1766137861033,0.80480752,88154.0,88150.0,1.0]
[1766137861232,0.80480752,88154.0,88145.0,0.01134494]
[1766137861233,0.80370852,88154.0,88145.0,0.01134494]
[1766137861456,0.80370852,88154.0,88145.0,0.01140686]
[1766137861780,0.45812852,88154.0,88146.0,0.22689628]
[1766137861935,0.0025,88161.0,88149.0,0.01134442]
[1766137862137,0.34558,88160.0,88149.0,0.03403327]
[1766137862343,0.34558,88160.0,88149.0,0.02268885]
[1766137862982,0.34558,88160.0,88150.0,0.0025]
[1766137863881,0.34558,88159.0,88150.0,0.0025]
[1766137864435,0.36663,88158.0,88150.0,0.0025]
[1766137864689,0.00568,88157.0,88150.0,0.0025]
[1766137865098,0.00568,88157.0,88148.0,0.0025]
[1766137865366,0.00568,88157.0,88148.0,0.03653366]
[1766137865746,0.00568,88157.0,88149.0,0.0025]
[1766137865989,0.36663,88158.0,88149.0,0.0025]
[1766137866196,0.37231,88158.0,88149.0,0.0025]
[1766137866325,0.37231,88158.0,88149.0,0.01384442]
[1766137866530,0.37231,88158.0,88151.0,0.0025]
[1766137866960,0.49318,88157.0,88151.0,0.0025]
[1766137867134,0.85981,88157.0,88151.0,0.0025]
[1766137872522,0.0025,88161.0,88151.0,0.0025]
[1766137872523,0.00568,88159.0,88151.0,0.0025]
[1766137872742,0.00568,88159.0,88151.0,0.02518834]
[1766137872868,0.00568,88159.0,88151.0,0.03653251]
[1766137873066,0.00568,88159.0,88152.0,0.01134404]
[1766137873286,0.49318,88177.0,88163.0,0.45382]
[1766137873497,0.49886,88177.0,88164.0,0.45382]
[1766137873712,0.49318,88170.0,88157.0,0.00568]
[1766137873911,0.01134159,88171.0,88150.0,0.00568]
[1766137873912,0.0025,88162.0,88150.0,0.00568]
[1766137874117,0.0025,88162.0,88148.0,0.15348]
[1766137874118,0.49318,88156.0,88148.0,0.15348]
[1766137874317,0.36663,88155.0,88148.0,0.00568]
[1766137875922,0.49318,88156.0,88148.0,0.00568]
[1766137876138,0.49318,88156.0,88149.0,0.0025]
[1766137881246,0.01134288,88161.0,88149.0,0.0025]
[1766137881444,0.46645,88151.0,88145.0,1.92e-06]
[1766137881688,0.37101,88146.0,88141.0,1.92e-06]
[1766137881881,0.46645,88145.0,88138.0,0.00568]
[1766137882082,0.37101,88138.0,88129.0,0.04544]
[1766137882295,0.37101,88138.0,88129.0,0.05112]
[1766137882505,0.37101,88134.0,88129.0,0.00568]
[1766137882943,0.37101,88134.0,88127.0,0.00568]
[1766137883149,0.37101,88134.0,88127.0,0.00574603]
[1766137883349,0.37101,88133.0,88128.0,0.0025]
[1766137884138,0.369911,88133.0,88128.0,0.0025]
[1766137885394,0.46645,88134.0,88128.0,0.0025]
[1766137890622,0.00568,88137.0,88128.0,0.24078967]
[1766137890793,0.00568,88137.0,88128.0,0.22944262]
[1766137890940,0.00568,88137.0,88132.0,0.01134661]
[1766137891150,0.00568,88137.0,88128.0,0.22944262]
[1766137891354,0.00568,88137.0,88130.0,0.01134687]
[1766137891557,0.00568,88137.0,88130.0,0.0025]
[1766137892964,0.00568,88137.0,88130.0,0.01384687]
[1766137893375,0.00568,88137.0,88130.0,0.0025]
[1766137894244,0.00568,88137.0,88130.0,0.01384687]
[1766137894646,0.00568,88137.0,88130.0,0.0025]
[1766137895003,0.00568,88137.0,88130.0,0.01384687]
[1766137895423,0.00568,88137.0,88130.0,0.0025]
[1766137896303,0.00568,88137.0,88130.0,0.01384687]
[1766137897208,0.00568,88137.0,88130.0,0.0025]
[1766137897409,0.00568,88137.0,88130.0,0.01384687]
[1766137897610,0.00568,88137.0,88130.0,0.0025]
[1766137900844,0.38671,88137.0,88130.0,0.0025]
[1766137901689,0.00568,88137.0,88130.0,0.0025]
[1766137903712,0.38671,88137.0,88130.0,0.0025]
[1766137905211,0.38671,88137.0,88131.0,0.01134674]
[1766137905625,0.38671,88137.0,88130.0,0.01384687]
[1766137906029,0.00568,88137.0,88130.0,0.01384687]
[1766137906842,0.00568,88137.0,88131.0,0.01134674]
[1766137907044,0.00568,88137.0,88132.0,0.01134661]
[1766137908016,0.00568,88137.0,88131.0,0.01134674]
[1766137908219,0.00568,88137.0,88130.0,0.01384687]
[1766137908378,0.00568,88137.0,88131.0,0.01134674]
[1766137909284,0.00568,88137.0,88132.0,0.01134661]
[1766137909799,0.00568,88137.0,88133.0,0.01134648]
[1766137909930,0.00568,88137.0,88132.0,0.01134661]
[1766137910144,0.05678378,88154.0,88132.0,0.01134661]
[1766137910145,0.48143,88157.0,88145.0,0.01134494]
[1766137910349,0.00024749,88162.0,88147.0,0.48025]
[1766137910350,0.00568,88156.0,88147.0,0.48025]
[1766137910569,0.00568,88156.0,88148.0,0.0025]
[1766137913988,0.38671,88156.0,88148.0,0.0025]
[1766137915432,0.38671,88156.0,88148.0,0.01384455]
[1766137915638,0.38671,88156.0,88150.0,0.0025]
[1766137916924,0.38671,88156.0,88148.0,0.0025]
[1766137918125,0.38671,88156.0,88148.0,0.01384455]
[1766137918287,0.38671,88156.0,88148.0,0.0025]
[1766137918486,0.00568,88156.0,88148.0,0.01384455]
[1766137918728,0.48143,88159.0,88151.0,0.23822758]
[1766137918932,0.00568,88158.0,88157.0,0.0025]
[1766137919131,0.00024749,88162.0,88157.0,0.0025]
[1766137919293,0.00568,88161.0,88157.0,0.0025]
[1766137920087,0.00577071,88161.0,88155.0,0.0025]
[1766137920321,0.48143,88160.0,88148.0,0.52102462]
[1766137920554,0.00577071,88161.0,88148.0,0.04077462]
[1766137920755,0.86246,88160.0,88148.0,0.04077462]
[1766137921064,0.00577071,88161.0,88148.0,0.04077462]
[1766137921065,0.38103,88157.0,88148.0,0.04077462]
[1766137921214,0.38103,88156.0,88147.0,0.04077462]
[1766137921418,0.38103,88156.0,88147.0,0.0521193]
[1766137921819,0.38103,88156.0,88148.0,0.01134455]
[1766137922012,0.38103,88156.0,88147.0,0.0521193]